fUSD/lending_fUSD_20241011
["ID","MTS","AMOUNT","RATE_DAILY","PERIOD"]
[340116185,1728611441418,-61.61840342,0.00010997,2]
[340116186,1728611441431,-1986.54423648,0.00010997,2]
[340116187,1728611441442,-418.28382068,0.00010997,2]
[340116188,1728611441458,-552.33090042,0.00010997,2]
[340116189,1728611441472,-456.00842475,0.00010997,2]
[340116190,1728611441485,-353.38735873,0.00010997,2]
[340116191,1728611441496,-1064.4559759,0.00010997,2]
[340116192,1728611441560,-339.42292302,0.00010997,2]
[340116193,1728611441572,-676.78766256,0.00010997,2]
[340116216,1728611443725,-551.08476496,0.00010997,2]
[340116217,1728611443737,-13364.79488492,0.00010997,2]
[340116218,1728611443747,-189.04998526,0.00010999,2]
[340116219,1728611443756,-21879.31697924,0.00011,2]
[340116220,1728611443765,-80009.8690233,0.00011,2]
[340116221,1728611443775,-4000.46547473,0.00011,2]
[340116222,1728611443784,-126855.22315306,0.00011,2]
[340116261,1728611692365,-5200.0,0.00013,4]
[340116263,1728611755229,2200.0,0.000106,3]
[340116264,1728611757330,4400.0,0.000107,3]
[340116265,1728611758335,514.68,0.00010234,2]
[340116266,1728611759423,6600.0,0.000108,3]
[340116267,1728611761713,8800.0,0.000109,3]
[340116268,1728611763553,1851.94347631,0.00010999,3]
[340116269,1728611763662,11100.0,0.000129,4]
[340116270,1728611794229,203.07,8.819e-05,2]
[340116273,1728611893367,-378.72,0.0001073,2]
[340116274,1728611893390,-1000.0,0.00010742,2]
[340116275,1728611893412,-250.0,0.00010761,2]
[340116276,1728611893433,-2558.0,0.0001089,2]
[340116277,1728611893459,-150.0,0.00010899,2]
[340116278,1728611893479,-920.3502468,0.00010899,2]
[340116279,1728611893501,-872.6834,0.000109,2]
[340116280,1728611893524,-62870.2463532,0.000109,2]
[340116281,1728612307654,192.91,8.862e-05,2]
[340116282,1728612446171,500.0,0.000106,3]
[340116283,1728612448264,1100.0,0.000107,3]
[340116284,1728612450368,1600.0,0.000108,3]
[340116285,1728612452467,2200.0,0.000109,3]
[340116286,1728612454788,2800.0,0.000129,4]
[340116287,1728612557471,31849.08350866,0.000101,2]
[340116332,1728612631970,-250.0,0.00010563,2]
[340116334,1728612631980,-158.26,0.00010606,2]
[340116336,1728612631990,-189.36,0.00010814,2]
[340116338,1728612631999,-2569.25800788,0.00010814,2]
[340116340,1728612632008,-200.0,0.00010828,2]
[340116342,1728612632016,-828.31522212,0.00010899,2]
[340116344,1728612632025,-150.0,0.00010899,2]
[340116346,1728612632034,-1782.48,0.000109,2]
[340116347,1728612632043,-9217.29122501,0.000109,2]
[340116348,1728612632054,-500.0,0.000109,2]
[340116349,1728612632064,-2204.75,0.000109,2]
[340116353,1728612637782,-317.17126569,0.000109,2]
[340116354,1728612637960,-349.31323519,0.000109,2]
[340116355,1728612639684,-580.55855871,0.000109,2]
[340116356,1728612639696,-1252.95694041,0.000109,2]
[340116357,1728612639705,-4813.85478259,0.000109,2]
[340116358,1728612639716,-3549.47035395,0.000109,2]
[340116359,1728612639729,-7876.57458525,0.000109,2]
[340116360,1728612639738,-6717.3109,0.000109,2]
[340116361,1728612639748,-130279.4372,0.000109,2]
[340116362,1728612639757,-4576.52373166,0.000109,2]
[340116363,1728612639888,-574.0,0.000109,2]
[340116364,1728612639899,-1856.44440045,0.000109,2]
[340116382,1728612642995,-11903.16306789,0.000109,2]
[340116383,1728612643004,-3644.436,0.000109,2]
[340116384,1728612643013,-1083.0,0.0001091,2]
[340116385,1728612643022,-254.7,0.00010959,2]
[340116386,1728612643032,-1500.0,0.00010959,2]
[340116387,1728612643041,-155.22,0.00010959,2]
[340116388,1728612643050,-250.0,0.00010959,2]
[340116389,1728612643060,-189.04998526,0.00010999,2]
[340116390,1728612643069,-499.99,0.00010999,2]
[340116391,1728612643078,-22058.17365665,0.00011,2]
[340116392,1728612643087,-193148.23365418,0.00011,2]
[340116393,1728612643096,-11612.75313653,0.00011,2]
[340116394,1728612643108,-294.875,0.00011,2]
[340116405,1728612645654,-806.41047797,0.000108,2]
[340116406,1728612645665,-2543.88232203,0.000108,2]
[340116407,1728612645674,-283.57497789,0.00010999,2]
[340116408,1728612645683,-56024.65171834,0.00011,2]
[340116409,1728612645694,-12120.0,0.00011,2]
[340116411,1728612646036,-1183.59657466,0.00011,2]
[340116413,1728612808715,207.22,8.873e-05,2]
[340116416,1728613142503,11516.0,0.000104,5]
[340116417,1728613142728,11516.0,0.000102,3]
[340116418,1728613142956,11539.0,0.000101,2]
[340116419,1728613146339,500.0,0.00010417,3]
[340116420,1728613146584,300.0,0.000107,3]
[340116421,1728613148678,700.0,0.000108,3]
[340116422,1728613150776,1100.0,0.000109,3]
[340116423,1728613152893,1500.0,0.000119,4]
[340116425,1728613241512,150.0,0.00013,3]
[340116426,1728613333459,196.85,8.403e-05,2]
[340116430,1728613486803,152.0,0.00012648,5]
[340116431,1728613610896,152.0,0.00012648,23]
[340116432,1728613611756,152.0,0.00012563,22]
[340116433,1728613612235,152.0,0.00012479,21]
[340116434,1728613612540,152.0,0.00012394,20]
[340116435,1728613612852,152.0,0.00012309,19]
[340116436,1728613613181,152.0,0.00012225,18]
[340116437,1728613613482,152.0,0.0001214,17]
[340116438,1728613613767,152.0,0.00012055,16]
[340116439,1728613615092,152.0,0.00011971,15]
[340116440,1728613615980,152.0,0.00011886,14]
[340116441,1728613616312,152.0,0.00011801,13]
[340116442,1728613616631,152.0,0.00011717,12]
[340116443,1728613616967,152.0,0.00011632,11]
[340116444,1728613617504,152.0,0.00011547,10]
[340116445,1728613617607,152.0,0.00011463,9]
[340116446,1728613617914,152.0,0.00011378,8]
[340116447,1728613618339,152.0,0.00011294,7]
[340116448,1728613618645,152.0,0.00011209,6]
[340116449,1728613618951,152.0,0.00011124,5]
[340116450,1728613619264,152.0,0.0001104,4]
[340116451,1728613619566,152.0,0.00010955,3]
[340116452,1728613620378,159.99458719,0.00012648,5]
[340116453,1728613639697,276.91076996,0.00012648,5]
[340116454,1728613647645,300.0,0.000106,3]
[340116455,1728613649740,700.0,0.000107,3]
[340116456,1728613651830,1000.0,0.000108,3]
[340116457,1728613653925,1400.0,0.000109,3]
[340116458,1728613656025,1700.0,0.000129,4]
[340116459,1728613709299,336.38,0.00010187,2]
[340116461,1728613726383,840.0,0.00010233,2]
[340116462,1728613770679,7522.86,0.00010223,2]
[340116495,1728613831954,-152.34,0.00010238,2]
[340116496,1728613831963,-354.43,0.00010262,2]
[340116497,1728613831972,-985.02775341,0.00010275,2]
[340116498,1728613831983,-2332.25224659,0.00010275,2]
[340116499,1728613831992,-250.0,0.00010276,2]
[340116500,1728613832001,-200.22,0.00010321,2]
[340116501,1728613832010,-160.0,0.00010327,2]
[340116502,1728613832019,-196.85,0.00010667,2]
[340116503,1728613832028,-499.99,0.00010667,2]
[340116504,1728613832037,-2545.67,0.00010692,2]
[340116505,1728613832045,-150.0,0.00010879,2]
[340116506,1728613832054,-28515.562759,0.0001088,2]
[340116529,1728613843034,-599.771298,0.0001088,2]
[340116530,1728613843045,-114146.5467182,0.0001088,2]
[340116531,1728613843054,-820.71,0.0001088,2]
[340116532,1728613843063,-13074.36,0.0001088,2]
[340116533,1728613843072,-150.0,0.000109,2]
[340116534,1728613843081,-534.7,0.000109,2]
[340116535,1728613843090,-150.0,0.000109,2]
[340116536,1728613843099,-150.0,0.000109,2]
[340116537,1728613843108,-150.0,0.000109,2]
[340116538,1728613843117,-358.83,0.000109,2]
[340116539,1728613843126,-150.0,0.000109,2]
[340116540,1728613843135,-423.89,0.000109,2]
[340116541,1728613843144,-429.35,0.000109,2]
[340116542,1728613843153,-429.35,0.000109,2]
[340116543,1728613843162,-534.7,0.000109,2]
[340116544,1728613843171,-359.0,0.000109,2]
[340116545,1728613843180,-300.0,0.000109,2]
[340116546,1728613843189,-150.0,0.000109,2]
[340116547,1728613843198,-150.0,0.000109,2]
[340116548,1728613843207,-429.35,0.000109,2]
[340116549,1728613843219,-359.0,0.000109,2]
[340116550,1728613843228,-534.7,0.000109,2]
[340116551,1728613843236,-350.92,0.000109,2]
[340116552,1728613843245,-534.7,0.000109,2]
[340116553,1728613843254,-429.35,0.000109,2]
[340116554,1728613843264,-359.0,0.000109,2]
[340116555,1728613843272,-155.13636298,0.000109,2]
[340116556,1728613843282,-163.69873636,0.000109,2]
[340116557,1728613843291,-18254.98348414,0.000109,2]
[340116558,1728613843300,-203.76,0.00010959,2]
[340116559,1728613843309,-250.0,0.00010959,2]
[340116560,1728613843318,-16959.14,0.00010959,2]
[340116561,1728613843328,-508.79762945,0.00010973,2]
[340116562,1728613843337,-13364.79488492,0.00010997,2]
[340116563,1728613843346,-210.76477582,0.00010999,2]
[340116564,1728613843355,-730.88756304,0.00010999,2]
[340116565,1728613843365,-22182.17365665,0.00011,2]
[340116566,1728613843374,-18376.5666358,0.00011,2]
[340116567,1728613845884,-60520.27379243,0.00011,2]
[340116571,1728613966026,200.6,9.011e-05,2]
[340116610,1728614528655,190.57,8.892e-05,2]
[340116617,1728614828530,628.09468207,0.0001,2]
[340116632,1728615032062,-239.78143767,0.00010771,2]
[340116633,1728615032084,-250.0,0.00010865,2]
[340116634,1728615032105,-1000.0,0.00010871,2]
[340116635,1728615032128,-745.48369989,0.000109,2]
[340116636,1728615032152,-158.26,0.00010944,2]
[340116637,1728615032183,-163.0,0.00010959,2]
[340116638,1728615032225,-175.11,0.00010959,2]
[340116639,1728615032261,-250.0,0.00010959,2]
[340116640,1728615032271,-205.66,0.00010972,2]
[340116641,1728615032280,-418.46555339,0.00010999,2]
[340116642,1728615032332,-312.42200965,0.00010999,2]
[340116643,1728615032342,-210.76477582,0.00010999,2]
[340116644,1728615032351,-20.91310033,0.00010999,2]
[340116645,1728615032362,-279.08689967,0.00010999,2]
[340116646,1728615032371,-386.18449022,0.00011,2]
[340116647,1728615032382,-16264.85479329,0.00011,2]
[340116648,1728615032393,-950.98401358,0.00011,2]
[340116653,1728615038051,-4580.15035956,0.00011,2]
[340116654,1728615038060,-8636.25282967,0.00011,2]
[340116655,1728615038070,-5757.66,0.00011,2]
[340116666,1728615040094,-12634.45095408,0.00011,2]
[340116667,1728615040105,-1968.61316855,0.00011,2]
[340116668,1728615040115,-190680.24711348,0.00011,2]
[340116669,1728615040126,-3895.58825898,0.00011,2]
[340116670,1728615040264,-2336.89922027,0.00011,2]
[340116671,1728615040275,-12860.46342729,0.00011,2]
[340116895,1728615042989,-1808.51999948,0.00011,2]
[340116914,1728615043157,-41500.39263131,0.00011,2]
[340116959,1728615046130,-214.737,0.000109,2]
[340116960,1728615046139,-562.09517008,0.00011,2]
[340116961,1728615051167,181.04,9.264e-05,2]
[340116962,1728615261652,2210.37934691,0.00010999,3]
[340116963,1728615261688,2210.37934691,0.00010999,3]
[340116964,1728615261721,2210.37934691,0.00010999,3]
[340116965,1728615261931,2210.37934691,0.00010999,3]
[340116966,1728615261965,2210.37934691,0.00010999,3]
[340116967,1728615261995,2210.37934691,0.00010999,3]
[340116968,1728615262024,2210.37934691,0.00010999,3]
[340116969,1728615262053,2140.49573817,0.00010999,3]
[340116970,1728615262076,69.88360874,0.00010999,3]
[340116971,1728615262109,2210.37934691,0.00010999,3]
[340116972,1728615262150,199.78582419,0.00010999,3]
[340116973,1728615262181,2210.37934691,0.00010999,3]
[340116974,1728615262210,2210.37934691,0.00010999,3]
[340116975,1728615262241,200.21417581,0.00010999,3]
[340116976,1728615262273,2210.37934688,0.00010999,3]
[340116977,1728615265802,300.0,0.000106,3]
[340116978,1728615267900,700.0,0.000107,3]
[340116979,1728615270003,1100.0,0.000108,3]
[340116980,1728615272099,1500.0,0.000109,3]
[340116984,1728615562080,194.49,8.72e-05,2]
[340116985,1728615982685,1000.0,0.000215,90]
[340116986,1728616111284,184.76,8.416e-05,2]
[340116990,1728616232557,-205.66,0.00010382,2]
[340116991,1728616232567,-250.0,0.00010382,2]
[340116992,1728616232576,-158.26,0.00010421,2]
[340116993,1728616232586,-343.56,0.00010431,2]
[340116994,1728616232595,-184.76,0.0001068,2]
[340116995,1728616232604,-5355.171115,0.00010742,2]
[340116999,1728616238356,-641.344885,0.00010742,2]
[340117000,1728616238366,-724.68,0.00010742,2]
[340117001,1728616238375,-4272.324,0.00010742,2]
[340117002,1728616238385,-1083.0,0.00010742,2]
[340117003,1728616238394,-300.0,0.00010844,2]
[340117004,1728616238403,-8821.279779,0.00010845,2]
[340117005,1728616238412,-755.4,0.000109,2]
[340117006,1728616238422,-670.93532991,0.000109,2]
[340117007,1728616238431,-852.53,0.000109,2]
[340117008,1728616238441,-398.18,0.000109,2]
[340117009,1728616238450,-155.22,0.00010959,2]
[340117010,1728616238459,-250.0,0.00010959,2]
[340117011,1728616238468,-163.0,0.00010959,2]
[340117012,1728616238477,-1000.0,0.00010964,2]
[340117013,1728616238486,-499.99,0.00010964,2]
[340117014,1728616238496,-359.0,0.00010978,2]
[340117015,1728616238506,-429.35,0.00010978,2]
[340117016,1728616238515,-4411.64704852,0.00010978,2]
[340117017,1728616238559,-1962.36295148,0.00010978,2]
[340117018,1728616238568,-2571.56238877,0.00011,2]
[340117030,1728616240204,-404.64335304,0.00011,2]
[340117031,1728616240422,-16987.75054918,0.00011,2]
[340117032,1728616240431,-43573.88173909,0.00011,2]
[340117033,1728616240443,-2555.8146314,0.00011,2]
[340117034,1728616240454,-1417.07391674,0.00011,2]
[340117055,1728616325508,1219.2487,0.00010182,2]
[340117056,1728616756891,190.36,8.732e-05,2]
[340117057,1728616975976,1073.71375775,0.00010999,3]
[340117060,1728617396320,180.84,8.824e-05,2]
[340117067,1728617432239,-310.960074,0.00010387,2]
[340117069,1728617432249,-250.0,0.00010487,2]
[340117071,1728617432258,-250.0,0.00010487,2]
[340117073,1728617432267,-1000.0,0.00010681,2]
[340117075,1728617432276,-300.0,0.00010899,2]
[340117078,1728617432286,-150.0,0.00010899,2]
[340117081,1728617432295,-500.0,0.000109,2]
[340117084,1728617432304,-1000.0,0.000109,2]
[340117087,1728617432315,-1236.00622,0.000109,2]
[340117097,1728617432376,-3708.73018,0.000109,2]
[340117099,1728617432386,-675.68872815,0.000109,2]
[340117101,1728617432395,-7500.0,0.000109,2]
[340117103,1728617432404,-188.07843655,0.000109,2]
[340117105,1728617432414,-190.12,0.00010959,2]
[340117107,1728617432423,-166.35,0.00010959,2]
[340117109,1728617432432,-163.0,0.00010959,2]
[340117111,1728617432442,-500.0,0.00010973,2]
[340117113,1728617432451,-247.58423704,0.00010999,2]
[340117115,1728617432460,-499.99,0.00011,2]
[340117117,1728617432469,-1192.01178056,0.00011,2]
[340117120,1728617432480,-6576.90399969,0.00011,2]
[340117124,1728617432514,-6379.77272277,0.00011,2]
[340117128,1728617432524,-766.60558225,0.00011,2]
[340117142,1728617440344,-367.1293,0.000109,2]
[340117143,1728617440354,-117.45057823,0.00011,2]
[340117262,1728617443570,-2934.81599839,0.00011,2]
[340117263,1728617443580,-2277.15604971,0.00011,2]
[340117273,1728617446342,-509.61178535,0.00011,2]
[340117274,1728617446354,-83020.87445076,0.00011,2]
[340117275,1728617446366,-2447.63822046,0.00011,2]
[340117276,1728617446470,-368.05180885,0.00011,2]
[340117277,1728617446481,-581.02513369,0.00011,2]
[340117278,1728617446493,-1417.56443875,0.00011,2]
[340117279,1728617446504,-17614.77864084,0.00011,2]
[340117280,1728617446515,-1546.58900404,0.00011,2]
[340117281,1728617446526,-49023.92797822,0.00011,2]
[340117282,1728617446537,-8200.69049466,0.00011,2]
[340117283,1728617446547,-1110.51983804,0.00011,2]
[340117284,1728617446558,-2026.77504163,0.00011,2]
[340117285,1728617446570,-10401.00682633,0.00011,2]
[340117286,1728617446594,-1224.9376738,0.00011,2]
[340117287,1728617446606,-4417.52516995,0.00011,2]
[340117288,1728617446617,-2735.70533876,0.00011,2]
[340117289,1728617446628,-267.22683068,0.00011,2]
[340117290,1728617446639,-1189.02918722,0.00011,2]
[340117291,1728617446719,-2833.93426172,0.00011,2]
[340117294,1728617566476,-793.56088512,0.0001421,7]
[340117296,1728618018989,184.32,8.849e-05,2]
[340117297,1728618194449,11514.0,0.000125,3]
[340117298,1728618318801,11516.0,0.000125,5]
[340117305,1728618632377,-561.75930824,0.00010698,2]
[340117306,1728618632389,-438.24069176,0.00010698,2]
[340117307,1728618632399,-1778.03301207,0.00010701,2]
[340117308,1728618632411,-1428.69698793,0.00010701,2]
[340117309,1728618632420,-250.0,0.0001071,2]
[340117310,1728618632431,-763.5431,0.000108,2]
[340117311,1728618632442,-1028.0,0.000109,2]
[340117312,1728618632451,-608.11985529,0.000109,2]
[340117313,1728618632460,-155.22,0.00010959,2]
[340117314,1728618632469,-163.0,0.00010959,2]
[340117315,1728618632479,-300.0,0.00010989,2]
[340117316,1728618632492,-4696.11232671,0.0001099,2]
[340117317,1728618632504,-485.49269829,0.0001099,2]
[340117318,1728618632514,-150.0,0.00010999,2]
[340117319,1728618632523,-1118.25730171,0.00011,2]
[340117328,1728618638813,-502.07315815,0.00011,2]
[340117330,1728618640637,-4829.04030226,0.00011,2]
[340117473,1728618686421,186.88,9.079e-05,2]
[340117475,1728619228315,177.53,8.615e-05,2]
[340117476,1728619686302,-1000.0,0.00010331,2]
[340117477,1728619687751,-1000.0,0.00010331,2]
[340117478,1728619688843,-663.01261502,0.00010331,2]
[340117479,1728619688867,-250.0,0.00010424,2]
[340117480,1728619688891,-86.98738498,0.00010431,2]
[340117481,1728619690503,-163.01261502,0.00010431,2]
[340117482,1728619690524,-836.98738498,0.00010501,2]
[340117483,1728619691591,-1000.0,0.00010501,2]
[340117484,1728619695898,-250.0,0.00010501,2]
[340117485,1728619723397,168.65,8.791e-05,2]
[340117486,1728619747946,-1000.0,0.00010425,2]
[340117487,1728619750967,-1000.0,0.00010501,2]
[340117488,1728619752519,-1000.0,0.00010501,2]
[340117489,1728619753748,-1000.0,0.00010501,2]
[340117490,1728619754960,-1000.0,0.00010501,2]
[340117491,1728619756078,-1000.0,0.00010501,2]
[340117492,1728619757376,-1000.0,0.00010501,2]
[340117493,1728619758609,-1000.0,0.00010501,2]
[340117494,1728619793127,-1000.0,0.00010501,2]
[340117495,1728619795164,-1000.0,0.00010501,2]
[340117496,1728619796603,-1000.0,0.00010501,2]
[340117497,1728619800656,-500.0,0.00010501,2]
[340117504,1728619831484,-470.59679604,0.00010501,2]
[340117505,1728619831495,-846.47,0.00010501,2]
[340117506,1728619831506,-350.2299999,0.00010501,2]
[340117507,1728619831536,-1602.43581908,0.00010501,2]
[340117508,1728619831546,-181.73,0.00010525,2]
[340117509,1728619831555,-800.0,0.00010535,2]
[340117510,1728619831566,-200.0,0.00010741,2]
[340117511,1728619831575,-1188.31619005,0.00010761,2]
[340117512,1728619831587,-521.70471017,0.00010761,2]
[340117513,1728619831596,-935.0,0.00010762,2]
[340117514,1728619831605,-566.523,0.00010762,2]
[340117515,1728619831614,-151.965,0.00010762,2]
[340117516,1728619831624,-671.305,0.00010762,2]
[340117517,1728619831633,-457.57561839,0.00010762,2]
[340117518,1728619831648,-989.96085795,0.00010762,2]
[340117519,1728619831659,-799.76385243,0.00010762,2]
[340117520,1728619831671,-457.29170079,0.00010762,2]
[340117521,1728619831683,-650.40797044,0.00010762,2]
[340117522,1728619831692,-2028.554,0.00010762,2]
[340117523,1728619831701,-763.77805656,0.00010762,2]
[340117524,1728619831714,-1145.22194344,0.00010762,2]
[340117525,1728619831724,-820.0,0.00010762,2]
[340117526,1728619831734,-611.97010794,0.00010899,2]
[340117527,1728619831743,-5685.0537891,0.000109,2]
[340117528,1728619831755,-1856.9894157,0.000109,2]
[340117529,1728619831770,-329.29137495,0.000109,2]
[340117555,1728619838002,-1846.24752025,0.000109,2]
[340117556,1728619838012,-918.7252,0.000109,2]
[340117557,1728619838025,-4756.3786,0.000109,2]
[340117558,1728619838034,-499.99,0.000109,2]
[340117559,1728619838045,-490.11467769,0.000109,2]
[340117567,1728619839678,-509.88532231,0.000109,2]
[340117568,1728619839688,-289.58,0.0001095,2]
[340117569,1728619839697,-220.173,0.0001095,2]
[340117570,1728619839707,-1083.0,0.0001095,2]
[340117571,1728619839716,-163.0,0.00010959,2]
[340117572,1728619839726,-250.0,0.00010959,2]
[340117573,1728619839735,-80000.93993838,0.0001099,2]
[340117585,1728619840071,-229.37736739,0.0001099,2]
[340117712,1728620011598,-1000.0,0.00010301,2]
[340117713,1728620013663,-1000.0,0.00010301,2]
[340117714,1728620016007,-349.61949075,0.00010301,2]
[340117715,1728620016029,-650.38050925,0.00010401,2]
[340117716,1728620017727,-1000.0,0.00010401,2]
[340117717,1728620019092,-1000.0,0.00010401,2]
[340117718,1728620023351,-300.0,0.00010401,2]
[340117788,1728620126904,223.61,0.00010163,2]
[340117789,1728620127160,223.61,0.00010165,2]
[340117790,1728620127365,223.61,0.00010168,2]
[340117791,1728620127773,223.61,0.00010171,2]
[340117792,1728620127806,223.61,0.00010173,2]
[340117793,1728620128007,223.61,0.00010176,2]
[340117794,1728620128233,223.61,0.00010179,2]
[340117795,1728620128446,223.61,0.00010181,2]
[340117796,1728620128673,223.61,0.00010184,2]
[340117797,1728620129072,223.61,0.00010187,2]
[340117798,1728620129296,223.61,0.00010189,2]
[340117799,1728620129513,223.61,0.00010192,2]
[340117800,1728620129715,223.61,0.00010195,2]
[340117801,1728620129943,223.61,0.00010198,2]
[340117802,1728620130146,223.61,0.000102,2]
[340117803,1728620130357,223.61,0.00010203,2]
[340117804,1728620130596,223.61,0.00010206,2]
[340117805,1728620130817,223.61,0.00010208,2]
[340117806,1728620131063,223.61,0.00010211,2]
[340117807,1728620131276,223.61,0.00010214,2]
[340117808,1728620159040,343.25918974,0.00010201,2]
[340117809,1728620163769,343.25918974,0.00010232,2]
[340117810,1728620169913,2400.0,0.00010209,2]
[340117811,1728620254376,171.48,0.00010165,2]
[340117812,1728620274137,343.25918974,0.00010161,2]
[340117813,1728620346200,248.12,8.219e-05,2]
[340117814,1728620368306,552.38,0.00010054,2]
[340117815,1728620456440,250.0,0.00010108,2]
[340117816,1728620517472,222.0,0.00010212,2]
[340117817,1728620572244,2127.66,0.00010046,2]
[340117818,1728620597584,982.91,0.00010098,2]
[340117819,1728620629822,373.31395918,0.000215,90]
[340117820,1728620650289,250.0,0.00010049,2]
[340117821,1728620650674,185.82,0.00010095,2]
[340117822,1728620730725,1000.0,0.0001011,2]
[340117825,1728620799925,-339.29286423,0.0001026,2]
[340117826,1728620799947,-333.7827,0.00010265,2]
[340117827,1728620799967,-255.0,0.00010364,2]
[340117828,1728620799987,-71.92443577,0.00010401,2]
[340117829,1728620801405,-1000.0,0.00010401,2]
[340117830,1728620802580,-1000.0,0.00010401,2]
[340117831,1728620804101,-1000.0,0.00010401,2]
[340117832,1728620805268,-528.39395498,0.00010401,2]
[340117833,1728620805293,-198.18,0.00010462,2]
[340117834,1728620805318,-248.12,0.00010481,2]
[340117835,1728620809700,25.30604502,0.00010362,2]
[340117836,1728620812069,-900.0,0.00010362,2]
[340117837,1728620850987,5955.099,0.00010161,2]
[340117838,1728620879658,223.3,8.462e-05,2]
[340117841,1728620985169,250.0,0.00010207,2]
[340117849,1728621031702,-263.0764486,0.00010511,2]
[340117851,1728621031713,-122.3332891,0.00010511,2]
[340117853,1728621031723,-223.3,0.00010726,2]
[340117856,1728621031733,-299.0,0.00010851,2]
[340117857,1728621031742,-500.0,0.00010873,2]
[340117858,1728621031752,-72.48886172,0.00010879,2]
[340117859,1728621031763,-227.51113828,0.00010879,2]
[340117860,1728621031772,-150.0,0.00010879,2]
[340117861,1728621031782,-19653.34385931,0.0001088,2]
[340117862,1728621031793,-637.06237079,0.0001088,2]
[340117863,1728621031804,-4700.0,0.0001088,2]
[340117864,1728621031821,-2445.96196304,0.0001088,2]
[340117865,1728621031833,-55867.88712503,0.0001088,2]
[340117866,1728621031879,-382664.69404888,0.0001088,2]
[340117867,1728621031890,-468.72740377,0.0001088,2]
[340117868,1728621031901,-10969.02234045,0.0001088,2]
[340117869,1728621031940,-1284.72544455,0.0001088,2]
[340117870,1728621031951,-4248.04854285,0.0001088,2]
[340117871,1728621031962,-179.20981977,0.0001088,2]
[340117872,1728621031972,-240.0711132,0.0001089,2]
[340117873,1728621031982,-475.19816542,0.0001089,2]
[340117874,1728621031999,-3375.57463458,0.0001089,2]
[340117875,1728621032008,-1802.2377,0.0001089,2]
[340117876,1728621032018,-3484.528,0.0001089,2]
[340117877,1728621032028,-608.96911149,0.00010899,2]
[340117878,1728621032037,-223.69272302,0.000109,2]
[340117881,1728621037979,-776.30727698,0.000109,2]
[340117882,1728621037988,-43477.1604,0.000109,2]
[340117883,1728621037997,-595.64957992,0.000109,2]
[340117884,1728621038007,-10159.6656,0.000109,2]
[340117885,1728621038016,-20773.4083,0.000109,2]
[340117886,1728621038025,-30737.5519,0.000109,2]
[340117887,1728621038034,-500.0,0.000109,2]
[340117888,1728621038043,-6346.5201,0.000109,2]
[340117889,1728621038053,-150.93,0.000109,2]
[340117890,1728621038061,-150.45,0.000109,2]
[340117891,1728621038070,-302.53,0.000109,2]
[340117892,1728621038080,-437.85,0.000109,2]
[340117893,1728621038089,-423.89,0.000109,2]
[340117894,1728621038098,-755.4,0.000109,2]
[340117895,1728621038107,-150.72,0.000109,2]
[340117896,1728621038117,-150.0,0.000109,2]
[340117897,1728621038126,-150.0,0.000109,2]
[340117898,1728621038135,-152.51,0.000109,2]
[340117899,1728621038145,-359.09,0.000109,2]
[340117900,1728621038155,-300.7,0.000109,2]